Workbook

Sheet Intro
A1: Multi, intro hold
E3: 1 | F3: 2 | G3: 3 | H3: 4 | I3: 5 | J3: 6 | K3: 7 | L3: 8 | M3: 9 | N3: 10 | O3: 11 | P3: 12 | Q3: 13 | R3: 14 | S3: 15 | T3: 16 | V3: Total | X3: Placering
A5: Marlene Henneberg - J.O Henneberg | E5: 13.45 | F5: 9.24 | G5: 5.74 | H5: 2.12 | I5: 14.31 | J5: 17.63 | K5: 8.86 | L5: 8.36 | M5: 9.53 | N5: 6.3 | O5: 10.81 | P5: 9.97 | Q5: 15.59 | R5: 11.58 | S5: 16.86 | T5: 5.02 | V5: =AVERAGE(E5:T5) -> 10.335625 | X5: 5
A6: Rikke Skov Mønsted - Nils Mønsted | E6: 8.79 | F6: 10.91 | G6: 9.05 | H6: 10.54 | I6: 10.71 | J6: 5.58 | K6: 8.89 | L6: 10.86 | M6: 11.37 | N6: 11.24 | O6: 9.53 | P6: 10.12 | Q6: 13.99 | R6: 6.96 | S6: 13.03 | T6: 14.34 | V6: =AVERAGE(E6:T6) -> 10.369375 | X6: 4
A8: Emil Jepsen - Dennis Bilde | E8: 16 | F8: 8.09 | G8: 10.95 | H8: 17.88 | I8: 12.62 | J8: 12.66 | K8: 11.96 | L8: 10.6 | M8: 17.02 | N8: 12.08 | O8: 10.36 | P8: 8.7 | Q8: 8.28 | R8: 4.66 | S8: 6.97 | T8: 14.98 | V8: =AVERAGE(E8:T8) -> 11.488125 | X8: 1
A9: Martin Klausen - Palle Jensen | E9: 6 | F9: 2.66 | G9: 14.26 | H9: 9.46 | I9: 13.3 | J9: 10.7 | K9: 7.87 | L9: 11.57 | M9: 12.31 | N9: 3.04 | O9: 12.46 | P9: 6.08 | Q9: 14.26 | R9: 7.34 | S9: 3.14 | T9: 5.66 | V9: =AVERAGE(E9:T9) -> 8.756875 | X9: 16
A11: Lida Hulgaard - Øjvind Hulgaard | E11: 5.52 | F11: 4.3 | G11: 10.85 | H11: 9.45 | I11: 5.69 | J11: 14.42 | K11: 12.13 | L11: 9.4 | M11: 15.85 | N11: 10.13 | O11: 14.53 | P11: 10.31 | Q11: 7.67 | R11: 13.22 | S11: 5.23 | T11: 2.19 | V11: =AVERAGE(E11:T11) -> 9.430625 | X11: 12
A12: Henrik Caspersen - Niels Krøjgaard | E12: 16.29 | F12: 9.48 | G12: 6.01 | H12: 14.8 | I12: 9.29 | J12: 2.37 | K12: 8.04 | L12: 8.43 | M12: 9.61 | N12: 7.26 | O12: 9.14 | P12: 15.78 | Q12: 6.52 | R12: 10.78 | S12: 12.47 | T12: 17.21 | V12: =AVERAGE(E12:T12) -> 10.2175 | X12: 6
A14: Søren Caspersen - Emil Buus Thomsen | E14: 15.59 | F14: 6.19 | G14: 15.22 | H14: 4.29 | I14: 1.76 | J14: 10.51 | K14: 11.14 | L14: 9.14 | M14: 2.98 | N14: 16.96 | O14: 5.47 | P14: 4.22 | Q14: 8.97 | R14: 14.08 | S14: 14.77 | T14: 2.79 | V14: =AVERAGE(E14:T14) -> 9.005 | X14: 15
A15: Lars Peter Damgaard - Jørgen Pabst | E15: 10.17 | F15: 8.11 | G15: 12.41 | H15: 10.04 | I15: 4.81 | J15: 8.21 | K15: 11.11 | L15: 11.64 | M15: 7.69 | N15: 7.92 | O15: 10.86 | P15: 9.69 | Q15: 15.41 | R15: 9.22 | S15: 7.53 | T15: 17.81 | V15: =AVERAGE(E15:T15) -> 10.164375 | X15: 8
A17: Jørgen Cilleborg Hansen - Steen Schou | E17: 4.41 | F17: 11.89 | G17: 2.48 | H17: 7.89 | I17: 14.01 | J17: 16.98 | K17: 8.78 | L17: 15.02 | M17: 8.63 | N17: 13.7 | O17: 9.64 | P17: 13.92 | Q17: 12.33 | R17: 9.22 | S17: 15.12 | T17: 10.65 | V17: =AVERAGE(E17:T17) -> 10.916875 | X17: 3
A18: Jesper Bechsgaard - Anders Handberg Sørensen | E18: 9.83 | F18: 13.81 | G18: 6.83 | H18: 5.21 | I18: 13.88 | J18: 9.18 | K18: 6.78 | L18: 8.79 | M18: 10.47 | N18: 8.76 | O18: 7.54 | P18: 11.3 | Q18: 13.48 | R18: 6.78 | S18: 7.17 | T18: 9.2 | V18: =AVERAGE(E18:T18) -> 9.313125 | X18: 13
A20: Kresten Roland Johansen - Troels Buus Thomsen | E20: 14.48 | F20: 10.52 | G20: 4.78 | H20: 9.96 | I20: 6.12 | J20: 3.02 | K20: 9.42 | L20: 12.64 | M20: 6.56 | N20: 8.36 | O20: 9.19 | P20: 9.88 | Q20: 11.72 | R20: 12.66 | S20: 12.83 | T20: 9.35 | V20: =AVERAGE(E20:T20) -> 9.468125 | X20: 11
A21: Camilla Bo Krefeld - Johan Hammelev | E21: 3.71 | F21: 15.7 | G21: 7.59 | H21: 15.71 | I21: 5.99 | J21: 10.82 | K21: 11.47 | L21: 9.88 | M21: 9.95 | N21: 15.32 | O21: 10.47 | P21: 10.03 | Q21: 5.74 | R21: 15.34 | S21: 4.88 | T21: 10.8 | V21: =AVERAGE(E21:T21) -> 10.2125 | X21: 7
A23: Jens Kofoed - Johanne Bilde Kofoed | E23: 4 | F23: 17.34 | G23: 9.15 | H23: 5.2 | I23: 15.19 | J23: 9.49 | K23: 13.22 | L23: 4.98 | M23: 13.44 | N23: 4.68 | O23: 14.32 | P23: 5.9 | Q23: 4.41 | R23: 13.04 | S23: 13.57 | T23: 12.25 | V23: =AVERAGE(E23:T23) -> 10.01125 | X23: 9
A24: Stig Andersen - Ricardo Mirasola | E24: 14 | F24: 11.91 | G24: 13.99 | H24: 10.55 | I24: 18.24 | J24: 11.79 | K24: 11.22 | L24: 11.21 | M24: 10.05 | N24: 11.64 | O24: 12.3 | P24: 3.19 | Q24: 6.01 | R24: 8.42 | S24: 9.04 | T24: 16.51 | V24: =AVERAGE(E24:T24) -> 11.254375 | X24: 2
A26: H K Sørensen - Niels Henriksen | E26: 11.21 | F26: 10.76 | G26: 13.17 | H26: 12.11 | I26: 7.38 | J26: 9.3 | K26: 10.58 | L26: 10.12 | M26: 10.39 | N26: 9.87 | O26: 7.7 | P26: 14.1 | Q26: 4.59 | R26: 5.92 | S26: 6.43 | T26: 3.49 | V26: =AVERAGE(E26:T26) -> 9.195 | X26: 14
A27: Morten Bilde - Søren Cilleborg Bilde | E27: 6.55 | F27: 9.09 | G27: 17.52 | H27: 14.79 | I27: 6.7 | J27: 7.34 | K27: 8.53 | L27: 7.36 | M27: 4.15 | N27: 12.74 | O27: 5.68 | P27: 16.81 | Q27: 11.03 | R27: 10.78 | S27: 10.96 | T27: 7.75 | V27: =AVERAGE(E27:T27) -> 9.86125 | X27: 10
A44: Øjvind Hulgaard - Jesper Gad
A45: Niels Krøjgaard - Henrik Caspersen - H C Graversen

Sheet RR1
A1: Multi, RR1
E3: 1 | F3: 2 | G3: 3 | H3: 4 | I3: 5 | J3: 6 | K3: 7 | L3: 8 | M3: 9 | N3: 10 | O3: 11 | P3: 12 | Q3: 13 | R3: 14 | T3: Total | U3: Placering
A5: Camilla Bo Krefeld - Johan Hammelev | E5: 10.55 | F5: 12.66 | G5: 11.97 | H5: 6.74 | I5: 14.53 | J5: 16.17 | K5: 11.21 | L5: 13.24 | M5: 3.72 | N5: 13.86 | O5: 12.93 | P5: 4.61 | Q5: 15.63 | R5: 7.67 | T5: =AVERAGE(E5:R5) -> 11.10642857 | U5: 3
A6: Rikke Skov Mønsted - Nils Mønsted | E6: 14.01 | F6: 15.91 | G6: 6.84 | H6: 8.15 | I6: 7.74 | J6: 7.06 | K6: 8.51 | L6: 6.41 | M6: 13.78 | N6: 6.42 | O6: 9.55 | P6: 15.59 | Q6: 7.26 | R6: 12.19 | T6: =AVERAGE(E6:R6) -> 9.958571429 | U6: 11
A8: Morten Bilde - Søren Cilleborg Bilde | E8: 8.33 | F8: 4.43 | G8: 8.03 | H8: 11.85 | I8: 8.12 | J8: 16.06 | K8: 13.62 | L8: 12.56 | M8: 9.89 | N8: 16.45 | O8: 14.12 | P8: 11.77 | Q8: 13.76 | R8: 15.82 | T8: =AVERAGE(E8:R8) -> 11.77214286 | U8: 1
A9: Emil Jepsen - Dennis Bilde | E9: 7.28 | F9: 15.4 | G9: 13.16 | H9: 13.26 | I9: 13.77 | J9: 8.13 | K9: 6.55 | L9: 11.99 | M9: 18.2 | N9: 12.02 | O9: 9.13 | P9: 8.16 | Q9: 11.04 | R9: 15.77 | T9: =AVERAGE(E9:R9) -> 11.70428571 | U9: 2
A11: Jørgen Cilleborg Hansen - Steen Schou | E11: 10.57 | F11: 14 | G11: 5.73 | H11: 6.88 | I11: 12.26 | J11: 3.83 | K11: 13.45 | L11: 7.44 | M11: 10.02 | N11: 15.41 | O11: 13.58 | P11: 11.68 | Q11: 9.2 | R11: 8.97 | T11: =AVERAGE(E11:R11) -> 10.21571429 | U11: 8
A12: H K Sørensen - Niels Henriksen | E12: 14.03 | F12: 6.33 | G12: 6.82 | H12: 10.12 | I12: 5.47 | J12: 12.94 | K12: 6.38 | L12: 8.01 | M12: 15.98 | N12: 15.07 | O12: 13.81 | P12: 12.94 | Q12: 3.79 | R12: 9.07 | T12: =AVERAGE(E12:R12) -> 10.05428571 | U12: 10
A14: Marlene Henneberg - J.O Henneberg | E14: 12.95 | F14: 13.04 | G14: 13 | H14: 8.75 | I14: 9.58 | J14: 9.81 | K14: 8.79 | L14: 13.59 | M14: 10.11 | N14: 7.98 | O14: 6.42 | P14: 7.06 | Q14: 9.31 | R14: 11.1 | T14: =AVERAGE(E14:R14) -> 10.10642857 | U14: 9
A15: Stig Andersen - Ricardo Mirasola | E15: 14.01 | F15: 13 | G15: 18.14 | H15: 3.37 | I15: 3.84 | J15: 10.54 | K15: 11.49 | L15: 6.76 | M15: 1.8 | N15: 3.55 | O15: 6.19 | P15: 8.32 | Q15: 9.08 | R15: 6.64 | T15: =AVERAGE(E15:R15) -> 8.337857143 | U15: 15
A17: Lars Peter Damgaard - Jørgen Pabst | E17: 7.05 | F17: 7 | G17: 8.95 | H17: 10.5 | I17: 5.45 | J17: 14.19 | K17: 6.78 | L17: 3.67 | M17: 6.22 | N17: 6.14 | O17: 10.87 | P17: 8.23 | Q17: 10.8 | R17: 10.93 | T17: =AVERAGE(E17:R17) -> 8.341428571 | U17: 14
A18: Henrik Caspersen - Niels Krøjgaard | E18: 5.99 | F18: 6.96 | G18: 7.84 | H18: 14.04 | I18: 10.05 | J18: 14.64 | K18: 4.74 | L18: 14.72 | M18: 16.28 | N18: 13.58 | O18: 5.88 | P18: 11.84 | Q18: 16.21 | R18: 11.03 | T18: =AVERAGE(E18:R18) -> 10.98571429 | U18: 5
A20: Kresten Roland Johansen - Troels Buus Thomsen | E20: 9.43 | F20: 13.67 | G20: 7 | H20: 16.63 | I20: 9.95 | J20: 5.81 | K20: 13.84 | L20: 7.23 | M20: 15.98 | N20: 9.95 | O20: 10.45 | P20: 15.39 | Q20: 6.24 | R20: 4.23 | T20: =AVERAGE(E20:R20) -> 10.41428571 | U20: 7
A21: Martin Klausen - Palle Jensen | E21: 5.97 | F21: 6 | G21: 1.86 | H21: 11.25 | I21: 14.55 | J21: 5.36 | K21: 6.1 | L21: 3.59 | M21: 8.28 | N21: 7.29 | O21: 7.07 | P21: 4.41 | Q21: 8.96 | R21: 4.18 | T21: =AVERAGE(E21:R21) -> 6.776428571 | U21: 16
A23: Jens Kofoed - Johanne Bilde Kofoed | E23: 11.67 | F23: 4.6 | G23: 13.18 | H23: 13.12 | I23: 10.42 | J23: 9.46 | K23: 15.26 | L23: 16.33 | M23: 4.02 | N23: 12.71 | O23: 11.83 | P23: 12.86 | Q23: 4.37 | R23: 7.81 | T23: =AVERAGE(E23:R23) -> 10.54571429 | U23: 6
A24: Søren Caspersen - Emil Buus Thomsen | E24: 12.72 | F24: 15.57 | G24: 14.27 | H24: 9.88 | I24: 16.16 | J24: 10.19 | K24: 13.22 | L24: 5.28 | M24: 11.72 | N24: 10.05 | O24: 3.22 | P24: 6.75 | Q24: 12.74 | R24: 12.33 | T24: =AVERAGE(E24:R24) -> 11.00714286 | U24: 4
A26: Lida Hulgaard - Øjvind Hulgaard | E26: 5.99 | F26: 7.34 | G26: 11.05 | H26: 5.96 | I26: 11.88 | J26: 11.87 | K26: 13.9 | L26: 12.77 | M26: 9.98 | N26: 4.93 | O26: 16.78 | P26: 7.14 | Q26: 10.92 | R26: 8.9 | T26: =AVERAGE(E26:R26) -> 9.957857143 | U26: 12
A27: Jesper Bechsgaard - Anders Handberg Sørensen | E27: 9.45 | F27: 4.09 | G27: 12.16 | H27: 9.5 | I27: 6.23 | J27: 3.94 | K27: 6.16 | L27: 16.41 | M27: 4.02 | N27: 4.59 | O27: 8.17 | P27: 13.25 | Q27: 10.69 | R27: 13.36 | T27: =AVERAGE(E27:R27) -> 8.715714286 | U27: 13

Sheet Imp Par
A1: IMP Par
B4: 1 | C4: 2 | D4: 3 | E4: 4 | F4: 5 | I4: Placering
A5: Marlene Henneberg - J.O Henneberg | B5: 6.4 | C5: 28.9 | D5: 59.1 | E5: 20 | F5: -17.3 | H5: =SUM(B5:F5) -> 97.1 | I5: 1
A6: Camilla Bo Krefeld - Johan Hammelev | B6: 36.7 | C6: 10.3 | D6: 0.8 | E6: 32.6 | F6: 14.5 | H6: 94.9 | I6: 2
A7: Henrik Caspersen - Niels Krøjgaard | B7: -9.9 | C7: 35.9 | D7: 41.6 | E7: -6.7 | F7: 11.9 | H7: 72.8 | I7: 3
A8: Jørgen Cilleborg Hansen - Steen Schou | B8: 10.1 | C8: 12.3 | D8: 5.6 | E8: 16 | F8: 5.9 | H8: 49.9 | I8: 4
A9: Rikke Skov Mønsted - Nils Mønsted | B9: -51 | C9: -9 | D9: 28.7 | E9: 26.4 | F9: 39.5 | H9: 34.6 | I9: 5
A10: H K Sørensen - Niels Henriksen | B10: 13.6 | C10: -15.5 | D10: 1.8 | E10: 18.3 | F10: 15.6 | H10: 33.8 | I10: 6
A11: Stig Andersen - Ricardo Mirasola | B11: 0.3 | C11: -38.7 | D11: 45.9 | E11: -7 | F11: 28 | H11: 28.5 | I11: 7
A12: Emil Jepsen - Dennis Bilde | B12: 9.6 | C12: -43.5 | D12: 57.8 | E12: -7.9 | F12: 2.2 | H12: 18.2 | I12: 8
A13: Lars Peter Damgaard - Jørgen Pabst | B13: 45 | C13: 3.4 | D13: -21 | E13: -15.5 | F13: 2.8 | H13: 14.7 | I13: 9
A14: Søren Caspersen - Emil Buus Thomsen | B14: 14.3 | C14: 23 | D14: -15.6 | E14: 7.7 | F14: -16.2 | H14: 13.2 | I14: 10
A15: Jesper Bechsgaard - Anders Handberg Sørensen | B15: -9 | C15: 13.3 | D15: -7.1 | E15: -8.6 | F15: -5.8 | H15: -17.2 | I15: 11
A16: Morten Bilde - Søren Cilleborg Bilde | B16: 25.7 | C16: 3.6 | D16: -14.8 | E16: -15.8 | F16: -33.7 | H16: -35 | I16: 12
A17: Jens Kofoed - Johanne Bilde Kofoed | B17: -21.1 | C17: 12.1 | D17: -68.4 | E17: 13.9 | F17: -6.4 | H17: -69.9 | I17: 13
A18: Kresten Roland Johansen - Troels Buus Thomsen | B18: -38.3 | C18: 14.9 | D18: -3.5 | E18: -26.6 | F18: -18 | H18: -71.5 | I18: 14
A19: Lida Hulgaard - Øjvind Hulgaard | B19: -8.6 | C19: 2 | D19: -24.6 | E19: -29.4 | F19: -11.6 | H19: -72.2 | I19: 15
A20: Martin Klausen - Palle Jensen | B20: -23.9 | C20: -53 | D20: -62.1 | E20: -17.5 | F20: -11.2 | H20: -167.7 | I20: 16
B21: =SUM(B5:B20) -> -0.1 | C21: =SUM(C5:C20) -> 0 | D21: 24.2 | E21: -0.1 | F21: 0.2 | H21: =SUM(H5:H20) -> 24.2

Sheet RR2
A1: Multi, RR2
E3: 1 | F3: 2 | G3: 3 | H3: 4 | I3: 5 | J3: 6 | K3: 7 | L3: 8 | M3: 9 | N3: 10 | O3: 11 | P3: 12 | Q3: 13 | R3: 14 | T3: Total | U3: Placering
A5: Camilla Bo Krefeld - Johan Hammelev | E5: 10.17 | F5: 13.17 | G5: 11.22 | H5: 11.02 | I5: 12.51 | J5: 15.88 | K5: 8.85 | L5: 15.16 | M5: 5.28 | N5: 14.6 | O5: 8.74 | P5: 14.22 | Q5: 15.34 | R5: 2.7 | T5: =AVERAGE(E5:R5) -> 11.34714286 | U5: 3
A6: Rikke Skov Mønsted - Nils Mønsted | E6: 14.66 | F6: 12.7 | G6: 12.36 | H6: 9.85 | I6: 9.47 | J6: 11.98 | K6: 8.42 | L6: 16.15 | M6: 8.77 | N6: 3.76 | O6: 13.73 | P6: 0.67 | Q6: 15.61 | R6: 14.18 | T6: =AVERAGE(E6:R6) -> 10.87928571 | U6: 5
A8: Morten Bilde - Søren Cilleborg Bilde | E8: 16.39 | F8: 13.54 | G8: 15.11 | H8: 8.66 | I8: 10.32 | J8: 3.57 | K8: 4.45 | L8: 13.96 | M8: 10.4 | N8: 10.08 | O8: 6.27 | P8: 5.78 | Q8: 11.77 | R8: 8.67 | T8: =AVERAGE(E8:R8) -> 9.926428571 | U8: 7
A9: Emil Jepsen - Dennis Bilde | E9: 14.52 | F9: 14.82 | G9: 18.67 | H9: 17.69 | I9: 11.57 | J9: 16.4 | K9: 17.98 | L9: 12.74 | M9: 12.41 | N9: 9.88 | O9: 11.26 | P9: 19.33 | Q9: 12.75 | R9: 12.95 | T9: =AVERAGE(E9:R9) -> 14.49785714 | U9: 1
A11: Jørgen Cilleborg Hansen - Steen Schou | E11: 12.29 | F11: 10.17 | G11: 14.75 | H11: 15.34 | I11: 13.3 | J11: 13.23 | K11: 11.58 | L11: 4.84 | M11: 7.59 | N11: 9.92 | O11: 14.02 | P11: 14.03 | Q11: 6.66 | R11: 18.75 | T11: =AVERAGE(E11:R11) -> 11.89071429 | U11: 2
A12: H K Sørensen - Niels Henriksen | E12: 14.69 | F12: 8.89 | G12: 11.23 | H12: 8.6 | I12: 14.31 | J12: 11.6 | K12: 11.15 | L12: 3.85 | M12: 9.6 | N12: 10.12 | O12: 5.09 | P12: 6.17 | Q12: 12.32 | R12: 9.47 | T12: =AVERAGE(E12:R12) -> 9.792142857 | U12: 8
A14: Marlene Henneberg - J.O Henneberg | E14: 9.83 | F14: 7.3 | G14: 16.8 | H14: 9.44 | I14: 13.68 | J14: 5.95 | K14: 12.89 | L14: 13.11 | M14: 10.01 | N14: 16.71 | O14: 5.98 | P14: 13.83 | Q14: 8.23 | R14: 7.05 | T14: =AVERAGE(E14:R14) -> 10.77214286 | U14: 6
A15: Stig Andersen - Ricardo Mirasola | E15: 5.34 | F15: 6.83 | G15: 15.62 | H15: 8.32 | I15: 10.87 | J15: 16.51 | K15: 1.46 | L15: 9.85 | M15: 10.83 | N15: 8.34 | O15: 14.91 | P15: 5.97 | Q15: 7.25 | R15: 11.33 | T15: =AVERAGE(E15:R15) -> 9.530714286 | U15: 9
A17: Lars Peter Damgaard - Jørgen Pabst | E17: 7.71 | F17: 11.11 | G17: 4.89 | H17: 2.31 | I17: 6.32 | J17: 3.49 | K17: 11.52 | L17: 15.56 | M17: 11.23 | N17: 5.4 | O17: 6.65 | P17: 12.97 | Q17: 5.54 | R17: 10.81 | T17: =AVERAGE(E17:R17) -> 8.250714286 | U17: 14
A18: Henrik Caspersen - Niels Krøjgaard | E18: 5.31 | F18: 9.83 | G18: 1.33 | H18: 11.34 | I18: 9.13 | J18: 14.05 | K18: 9.84 | L18: 12.06 | M18: 14.72 | N18: 16.24 | O18: 16.44 | P18: 11.57 | Q18: 9.94 | R18: 12.88 | T18: =AVERAGE(E18:R18) -> 11.04857143 | U18: 4
A20: Kresten Roland Johansen - Troels Buus Thomsen | E20: 5.48 | F20: 6.46 | G20: 3.2 | H20: 11.68 | I20: 7.49 | J20: 8.02 | K20: 8.48 | L20: 7.94 | M20: 14.49 | N20: 8.37 | O20: 12.14 | P20: 15.43 | Q20: 13.34 | R20: 10.53 | T20: =AVERAGE(E20:R20) -> 9.503571429 | U20: 10
A21: Martin Klausen - Palle Jensen | E21: 3.61 | F21: 5.18 | G21: 4.38 | H21: 10.56 | I21: 10.53 | J21: 4.12 | K21: 10.16 | L21: 4.44 | M21: 13.83 | N21: 10.65 | O21: 18 | P21: 8.33 | Q21: 7.68 | R21: 1.25 | T21: =AVERAGE(E21:R21) -> 8.051428571 | U21: 15
A23: Jens Kofoed - Johanne Bilde Kofoed | E23: 10.63 | F23: 9.1 | G23: 8.77 | H23: 4.66 | I23: 8.43 | J23: 16.43 | K23: 7.11 | L23: 10.15 | M23: 6.17 | N23: 11.63 | O23: 3.56 | P23: 7.03 | Q23: 4.39 | R23: 17.3 | T23: =AVERAGE(E23:R23) -> 8.954285714 | U23: 11
A24: Søren Caspersen - Emil Buus Thomsen | E24: 10.84 | F24: 7.02 | G24: 5.25 | H24: 11.4 | I24: 9.68 | J24: 3.6 | K24: 18.54 | L24: 6.89 | M24: 5.51 | N24: 9.35 | O24: 13.35 | P24: 8.43 | Q24: 4.66 | R24: 5.82 | T24: =AVERAGE(E24:R24) -> 8.595714286 | U24: 13
A26: Lida Hulgaard - Øjvind Hulgaard | E26: 9.16 | F26: 10.9 | G26: 7.64 | H26: 8.98 | I26: 5.69 | J26: 6.77 | K26: 15.55 | L26: 7.26 | M26: 9.17 | N26: 3.29 | O26: 2 | P26: 4.57 | Q26: 14.46 | R26: 7.12 | T26: =AVERAGE(E26:R26) -> 8.04 | U26: 16
A27: Jesper Bechsgaard - Anders Handberg Sørensen | E27: 9.37 | F27: 12.98 | G27: 8.78 | H27: 10.15 | I27: 6.7 | J27: 8.4 | K27: 2.02 | L27: 6.04 | M27: 9.99 | N27: 11.66 | O27: 7.86 | P27: 11.67 | Q27: 10.06 | R27: 9.19 | T27: =AVERAGE(E27:R27) -> 8.919285714 | U27: 12

Sheet Hold i alt
A1: Klub 32 - Hold 2022/23
B5: RR1 | C5: RR2 | D5: Total | E5: Placering
A6: Emilios og Bilde | B6: 98.91 | C6: 108.35 | D6: =SUM(B6:C6) -> 207.26 | E6: 1
A7: Hopper og hingste | B7: 81.31 | C7: 86.09 | D7: 167.4 | E7: 2
A8: Seniors | B8: 70.64 | C8: 85.48 | D8: 156.12 | E8: 3
A9: Krøjs bridge circus | B9: 67.16 | C9: 68.52 | D9: 135.68 | E9: 4
A10: Mafioso og Hennebergs | B10: 55.75 | C10: 73.36 | D10: 129.11 | E10: 5
A11: La familia & youngsta | B11: 78.54 | C11: 47.83 | D11: 126.37 | E11: 6
A12: Hulgaard & Co | B12: 61.16 | C12: 41.86 | D12: 103.02 | E12: 7
A13: Newbies | B13: 46.53 | C13: 48.51 | D13: 95.04 | E13: 8

Sheet Slutspil
A1: SLUTSPIL
E4: 1 | F4: 2 | G4: 3 | H4: 4 | I4: 5 | J4: 6 | K4: 7 | L4: 8 | N4: Total | O4: Placering
A6: Camilla Bo Krefeld - Johan Hammelev | E6: 10.82 | F6: 15.29 | G6: 6.7 | H6: 8.18 | I6: 5.8 | J6: 12.23 | K6: 9.25 | L6: 19.4 | N6: =AVERAGE(E6:L6) -> 10.95875 | O6: 6
A7: Rikke Skov Mønsted - Nils Mønsted | E7: 10.57 | F7: 5.53 | G7: 8.34 | H7: 5.87 | I7: 8.65 | J7: 11.92 | K7: 9.79 | L7: 11.76 | N7: =AVERAGE(E7:L7) -> 9.05375 | O7: 12
A9: Morten Bilde - Søren Cilleborg Bilde | E9: 11.15 | F9: 7.76 | G9: 14.19 | H9: 11.8 | I9: 3.77 | J9: 16.14 | K9: 5.18 | L9: 4 | N9: =AVERAGE(E9:L9) -> 9.24875 | O9: 11
A10: Emil Jepsen - Dennis Bilde | E10: 3.42 | F10: 10.92 | G10: 7.18 | H10: 15.29 | I10: 7.97 | J10: 1.6 | K10: 12.59 | L10: 4.2 | N10: 7.89625 | O10: 13
A12: Jørgen Cilleborg Hansen - Steen Schou | E12: 16.58 | F12: 12.24 | G12: 12.82 | H12: 8.2 | I12: 11.35 | J12: 7.77 | K12: 10.75 | L12: 8.24 | N12: =AVERAGE(E12:L12) -> 10.99375 | O12: 5
A13: H K Sørensen - Niels Henriksen | E13: 8.85 | F13: 9.06 | G13: 5.81 | H13: 4.71 | I13: 14.2 | J13: 8.08 | K13: 10.21 | L13: 0.6 | N13: 7.69 | O13: 14
A15: Marlene Henneberg - J.O Henneberg | E15: 10.15 | F15: 7.93 | G15: 14.39 | H15: 7.57 | I15: 8 | J15: 16.36 | K15: 7.89 | L15: 12.89 | N15: =AVERAGE(E15:L15) -> 10.6475 | O15: 7
A16: Stig Andersen - Ricardo Mirasola | E16: 13.01 | F16: 17.24 | G16: 17.73 | H16: 7.07 | I16: 5.35 | J16: 8.88 | K16: 10.4 | L16: 8.43 | N16: 11.01375 | O16: 4
A18: Lars Peter Damgaard - Jørgen Pabst | E18: 9.43 | F18: 4.71 | G18: 13.3 | H18: 14.13 | I18: 12.03 | J18: 3.86 | K18: 7.41 | L18: 16 | N18: =AVERAGE(E18:L18) -> 10.10875 | O18: 8
A19: Henrik Caspersen - Niels Krøjgaard | E19: 9.18 | F19: 14.47 | G19: 11.66 | H19: 11.82 | I19: 16.23 | J19: 18.4 | K19: 14.82 | L19: 15.8 | N19: 14.0475 | O19: 1
A21: Kresten Roland Johansen - Troels Buus Thomsen | E21: 6.99 | F21: 12.07 | G21: 5.61 | H21: 12.93 | I21: 12.02 | J21: 14.86 | K21: 12.92 | L21: 16.28 | N21: =AVERAGE(E21:L21) -> 11.71 | O21: 3
A22: Martin Klausen - Palle Jensen | E22: 9.85 | F22: 2.76 | G22: 2.27 | H22: 12.43 | I22: 2.33 | J22: 7.5 | K22: 7.48 | L22: 13.29 | N22: 7.23875 | O22: 16
A24: Jens Kofoed - Johanne Bilde Kofoed | E24: 11.48 | F24: 11.62 | G24: 5.09 | H24: 13.34 | I24: 14.65 | J24: 3.62 | K24: 9.6 | L24: 7.11 | N24: =AVERAGE(E24:L24) -> 9.56375 | O24: 10
A25: Søren Caspersen - Emil Buus Thomsen | E25: 16.6 | F25: 8.91 | G25: 13.82 | H25: 11.66 | I25: 12 | J25: 11.12 | K25: 12.11 | L25: 11.57 | N25: 12.22375 | O25: 2
A27: Lida Hulgaard - Øjvind Hulgaard | E27: 3.4 | F27: 8.38 | G27: 6.18 | H27: 6.66 | I27: 7.98 | J27: 12.5 | K27: 12.52 | L27: 3.72 | N27: =AVERAGE(E27:L27) -> 7.6675 | O27: 15
A28: Jesper Bechsgaard - Anders Handberg Sørensen | E28: 8.52 | F28: 11.09 | G28: 14.91 | H28: 8.34 | I28: 17.67 | J28: 5.14 | K28: 7.08 | L28: 6.71 | N28: 9.9325 | O28: 9

Sheet Par
A1: Par
B3: 1.aften | C3: 2.aften | D3: 3.aften | E3: 4.aften | F3: 5.aften | H3: Sum | J3: Placering
A5: Morten Bilde - Søren Cilleborg Bilde | B5: 59 | C5: 51 | D5: 0 | E5: 5 | F5: 20 | H5: =SUM(B5:G5) -> 135 | J5: 1
A6: Emil Jepsen - Dennis Bilde | B6: 49 | C6: 33 | D6: 38 | E6: 51 | F6: -48 | H6: =SUM(B6:G6) -> 123 | J6: 2
A7: Henrik Caspersen - Niels Krøjgaard | B7: 62 | C7: -32 | D7: 10 | E7: 18 | F7: 16 | H7: =SUM(B7:G7) -> 74 | J7: 3
A8: Lars Peter Damgaard - Jørgen Pabst | B8: -1 | C8: -8 | D8: 42 | E8: 31 | F8: 9 | H8: =SUM(B8:G8) -> 73 | J8: 4
A9: Søren Caspersen - Emil Buus Thomsen | B9: -22 | C9: 18 | D9: 26 | E9: -12 | F9: 23 | H9: =SUM(B9:G9) -> 33 | J9: 5
A10: Kresten Roland Johansen - Troels Buus Thomsen | B10: 24 | C10: -3 | D10: 10 | E10: -23 | F10: 17 | H10: =SUM(B10:G10) -> 25 | J10: 6
A11: Lida Hulgaard - Øjvind Hulgaard | B11: 1 | C11: 4 | D11: 8 | E11: 25 | F11: -14 | H11: =SUM(B11:G11) -> 24 | J11: 7
A12: Marlene Henneberg - J.O Henneberg | B12: 2 | C12: -17 | D12: 3 | E12: 4 | F12: 12 | H12: =SUM(B12:G12) -> 4 | J12: 8.5
A13: Stig Andersen - Ricardo Mirasola | B13: -4 | C13: -49 | D13: 0 | E13: 15 | F13: 42 | H13: =SUM(B13:G13) -> 4 | J13: 8.5
A14: Camilla Bo Krefeld - Johan Hammelev | B14: 3 | C14: 9 | D14: 6 | E14: -7 | F14: -32 | H14: =SUM(B14:G14) -> -21 | J14: 10
A15: H K Sørensen - Niels Henriksen | B15: -19 | C15: -16 | D15: 11 | E15: -22 | F15: 3 | H15: =SUM(B15:G15) -> -43 | J15: 11
A16: Jørgen Cilleborg Hansen - Steen Schou | B16: -14 | C16: 30 | D16: -32 | E16: -8 | F16: -35 | H16: =SUM(B16:G16) -> -59 | J16: 12
A17: Rikke Skov Mønsted - Nils Mønsted | B17: -47 | C17: -24 | D17: -11 | E17: 8 | F17: -3 | H17: =SUM(B17:G17) -> -77 | J17: 13
A18: Jesper Bechsgaard - Anders Handberg Sørensen | B18: -26 | C18: 6 | D18: -43 | E18: -12 | F18: -3 | H18: =SUM(B18:G18) -> -78 | J18: 14
A19: Jens Kofoed - Johanne Bilde Kofoed | B19: -44 | C19: 12 | D19: -23 | E19: -31 | F19: -16 | H19: =SUM(B19:G19) -> -102 | J19: 15
A20: Martin Klausen - Palle Jensen | B20: -23 | C20: -14 | D20: -45 | E20: -42 | F20: 9 | H20: =SUM(B20:G20) -> -115 | J20: 16
B22: =SUM(B5:B21) -> 0 | C22: =SUM(C5:C21) -> 0 | D22: =SUM(D5:D21) -> 0 | E22: 0 | F22: 0 | H22: 0

Sheet Grand prix
A1: Grand prix klub 32 (2022-2023)
F3: Intro hold | G3: RR 1 | H3: IMP1 | I3: RR2 | J3: Slutspil | K3: Par | M3: Total | O3: Placering
A5: Henrik Caspersen - Niels Krøjgaard | F5: =Intro!X12*4 -> 24 | G5: ='RR1'!U18*7 -> 35 | H5: ='Imp Par'!I7*5 -> 15 | I5: ='RR2'!U18*7 -> 28 | J5: =Slutspil!O19*4 -> 4 | K5: =Par!J7*5 -> 15 | M5: =SUM(F5:L5) -> 121 | O5: 1
A6: Emil Jepsen - Dennis Bilde | F6: =Intro!X8*4 -> 4 | G6: ='RR1'!U9*7 -> 14 | H6: ='Imp Par'!I12*5 -> 40 | I6: ='RR2'!U9*7 -> 7 | J6: =Slutspil!O10*4 -> 52 | K6: =Par!J6*5 -> 10 | M6: =SUM(F6:L6) -> 127 | O6: 2
A7: Camilla Bo Krefeld - Johan Hammelev | F7: =Intro!X21*4 -> 28 | G7: ='RR1'!U5*7 -> 21 | H7: ='Imp Par'!I6*5 -> 10 | I7: ='RR2'!U5*7 -> 21 | J7: =Slutspil!O6*4 -> 24 | K7: =Par!J14*5 -> 50 | M7: =SUM(F7:L7) -> 154 | O7: 3
A8: Jørgen Cilleborg Hansen - Steen Schou | F8: =Intro!X17*4 -> 12 | G8: ='RR1'!U11*7 -> 56 | H8: ='Imp Par'!I8*5 -> 20 | I8: ='RR2'!U11*7 -> 14 | J8: =Slutspil!O12*4 -> 20 | K8: =Par!J16*5 -> 60 | M8: =SUM(F8:L8) -> 182 | O8: 4
A9: Marlene Henneberg - J.O Henneberg | F9: =Intro!X5*4 -> 20 | G9: ='RR1'!U14*7 -> 63 | H9: ='Imp Par'!I5*5 -> 5 | I9: ='RR2'!U14*7 -> 42 | J9: =Slutspil!O15*4 -> 28 | K9: =Par!J12*5 -> 42.5 | M9: =SUM(F9:L9) -> 200.5 | O9: 5
A10: Morten Bilde - Søren Cilleborg Bilde | F10: =Intro!X27*4 -> 40 | G10: ='RR1'!U8*7 -> 7 | H10: ='Imp Par'!I16*5 -> 60 | I10: ='RR2'!U8*7 -> 49 | J10: =Slutspil!O9*4 -> 44 | K10: =Par!J5*5 -> 5 | M10: =SUM(F10:L10) -> 205 | O10: 6
A11: Søren Caspersen - Emil Buus Thomsen | F11: =Intro!X14*4 -> 60 | G11: ='RR1'!U24*7 -> 28 | H11: ='Imp Par'!I14*5 -> 50 | I11: ='RR2'!U24*7 -> 91 | J11: =Slutspil!O25*4 -> 8 | K11: =Par!J9*5 -> 25 | M11: =SUM(F11:L11) -> 262 | O11: 7
A12: Rikke Skov Mønsted - Nils Mønsted | F12: =Intro!X6*4 -> 16 | G12: ='RR1'!U6*7 -> 77 | H12: ='Imp Par'!I9*5 -> 25 | I12: ='RR2'!U6*7 -> 35 | J12: =Slutspil!O7*4 -> 48 | K12: =Par!J17*5 -> 65 | M12: =SUM(F12:L12) -> 266 | O12: 8
A13: Stig Andersen - Ricardo Mirasola | F13: =Intro!X24*4 -> 8 | G13: ='RR1'!U15*7 -> 105 | H13: ='Imp Par'!I11*5 -> 35 | I13: ='RR2'!U15*7 -> 63 | J13: =Slutspil!O16*4 -> 16 | K13: =Par!J13*5 -> 42.5 | M13: =SUM(F13:L13) -> 269.5 | O13: 9
A14: Kresten Roland Johansen - Troels Buus Thomsen | F14: =Intro!X20*4 -> 44 | G14: ='RR1'!U20*7 -> 49 | H14: ='Imp Par'!I18*5 -> 70 | I14: ='RR2'!U20*7 -> 70 | J14: =Slutspil!O21*4 -> 12 | K14: =Par!J10*5 -> 30 | M14: =SUM(F14:L14) -> 275 | O14: 10
A15: H K Sørensen - Niels Henriksen | F15: =Intro!X26*4 -> 56 | G15: ='RR1'!U12*7 -> 70 | H15: ='Imp Par'!I10*5 -> 30 | I15: ='RR2'!U12*7 -> 56 | J15: =Slutspil!O13*4 -> 56 | K15: =Par!J15*5 -> 55 | M15: =SUM(F15:L15) -> 323 | O15: 11
A16: Lars Peter Damgaard - Jørgen Pabst | F16: =Intro!X15*4 -> 32 | G16: ='RR1'!U17*7 -> 98 | H16: ='Imp Par'!I13*5 -> 45 | I16: ='RR2'!U17*7 -> 98 | J16: =Slutspil!O18*4 -> 32 | K16: =Par!J8*5 -> 20 | M16: =SUM(F16:L16) -> 325 | O16: 12
A17: Jens Kofoed - Johanne Bilde Kofoed | F17: =Intro!X23*4 -> 36 | G17: ='RR1'!U23*7 -> 42 | H17: ='Imp Par'!I17*5 -> 65 | I17: ='RR2'!U23*7 -> 77 | J17: =Slutspil!O24*4 -> 40 | K17: =Par!J19*5 -> 75 | M17: =SUM(F17:L17) -> 335 | O17: 13
A18: Jesper Bechsgaard - Anders Handberg Sørensen | F18: =Intro!X18*4 -> 52 | G18: ='RR1'!U27*7 -> 91 | H18: ='Imp Par'!I15*5 -> 55 | I18: ='RR2'!U27*7 -> 84 | J18: =Slutspil!O28*4 -> 36 | K18: =Par!J18*5 -> 70 | M18: =SUM(F18:L18) -> 388 | O18: 14 | Q18: h
A19: Lida Hulgaard - Øjvind Hulgaard | F19: =Intro!X11*4 -> 48 | G19: ='RR1'!U26*7 -> 84 | H19: ='Imp Par'!I19*5 -> 75 | I19: ='RR2'!U26*7 -> 112 | J19: =Slutspil!O27*4 -> 60 | K19: =Par!J11*5 -> 35 | M19: =SUM(F19:L19) -> 414 | O19: 15
A20: Martin Klausen - Palle Jensen | F20: =Intro!X9*4 -> 64 | G20: ='RR1'!U21*7 -> 112 | H20: ='Imp Par'!I20*5 -> 80 | I20: ='RR2'!U21*7 -> 105 | J20: =Slutspil!O22*4 -> 64 | K20: =Par!J20*5 -> 80 | M20: =SUM(F20:L20) -> 505 | O20: 16

Sheet Fremmøde
A1: Fremmøde som samlet par
B3: Introhold | C3: RR1 | D3: Imp | E3: RR2 | F3: Slut | G3: par | I3: Fremmøde% | K3: Fremmøde/antal
A4: Aftener: | B4: 4 | C4: 7 | D4: 5 | E4: 7 | F4: 4 | G4: 5 | K4: 32
B5: Fremmøde
A6: Camilla Bo Krefeld - Johan Hammelev | B6: 4 | C6: 7 | D6: 5 | E6: 7 | F6: 4 | G6: 5 | I6: =SUM(B6:G6)/$K$4% -> 100 | K6: =SUM(B6:G6) -> 32
A7: Rikke Skov Mønsted - Nils Mønsted | B7: 4 | C7: 7 | D7: 4 | E7: 7 | F7: 4 | G7: 5 | I7: =SUM(B7:G7)/$K$4% -> 96.875 | K7: =SUM(B7:G7) -> 31
A8: Lars Peter Damgaard - Jørgen Pabst | B8: 4 | C8: 7 | D8: 5 | E8: 6 | F8: 3 | G8: 5 | I8: =SUM(B8:G8)/$K$4% -> 93.75 | K8: =SUM(B8:G8) -> 30
A9: Marlene Henneberg - J.O Henneberg | B9: 4 | C9: 6 | D9: 4 | E9: 7 | F9: 4 | G9: 5 | I9: =SUM(B9:G9)/$K$4% -> 93.75 | K9: =SUM(B9:G9) -> 30
A10: Jørgen Cilleborg Hansen - Steen Schou | B10: 2 | C10: 6 | D10: 4 | E10: 6 | F10: 4 | G10: 4 | I10: =SUM(B10:G10)/$K$4% -> 81.25 | K10: =SUM(B10:G10) -> 26
A11: Martin Klausen - Palle Jensen | B11: 3 | C11: 6 | D11: 2 | E11: 7 | F11: 3 | G11: 5 | I11: =SUM(B11:G11)/$K$4% -> 81.25 | K11: =SUM(B11:G11) -> 26
A12: Lida Hulgaard - Øjvind Hulgaard | B12: 2 | C12: 5 | D12: 5 | E12: 7 | F12: 2 | G12: 4 | I12: =SUM(B12:G12)/$K$4% -> 78.125 | K12: =SUM(B12:G12) -> 25
A13: Henrik Caspersen - Niels Krøjgaard | B13: 4 | C13: 3 | D13: 4 | E13: 6 | F13: 4 | G13: 3 | I13: =SUM(B13:G13)/$K$4% -> 75 | K13: =SUM(B13:G13) -> 24
A14: Kresten Roland Johansen - Troels Buus Thomsen | B14: 3 | C14: 4 | D14: 5 | E14: 5 | F14: 3 | G14: 4 | I14: =SUM(B14:G14)/$K$4% -> 75 | K14: =SUM(B14:G14) -> 24
A15: Stig Andersen - Ricardo Mirasola | B15: 4 | C15: 6 | D15: 3 | E15: 3 | F15: 3 | G15: 4 | I15: =SUM(B15:G15)/$K$4% -> 71.875 | K15: =SUM(B15:G15) -> 23
A16: Jens Kofoed - Johanne Bilde Kofoed | B16: 4 | C16: 4 | D16: 3 | E16: 4 | F16: 4 | G16: 4 | I16: =SUM(B16:G16)/$K$4% -> 71.875 | K16: =SUM(B16:G16) -> 23
A17: H K Sørensen - Niels Henriksen | B17: 1 | C17: 5 | D17: 5 | E17: 7 | F17: 3 | G17: 1 | I17: =SUM(B17:G17)/$K$4% -> 68.75 | K17: =SUM(B17:G17) -> 22
A18: Jesper Bechsgaard - Anders Handberg Sørensen | B18: 3 | C18: 1 | D18: 4 | E18: 7 | F18: 3 | G18: 3 | I18: =SUM(B18:G18)/$K$4% -> 65.625 | K18: =SUM(B18:G18) -> 21
A19: Morten Bilde - Søren Cilleborg Bilde | B19: 3 | C19: 5 | D19: 3 | E19: 5 | F19: 2 | G19: 2 | I19: =SUM(B19:G19)/$K$4% -> 62.5 | K19: =SUM(B19:G19) -> 20
A20: Emil Jepsen - Dennis Bilde | B20: 1 | C20: 3 | D20: 1 | E20: 6 | F20: 1 | G20: 4 | I20: =SUM(B20:G20)/$K$4% -> 50 | K20: =SUM(B20:G20) -> 16
A21: Søren Caspersen - Emil Buus Thomsen | B21: 4 | C21: 3 | D21: 3 | E21: 4 | F21: 0 | G21: 0 | I21: =SUM(B21:G21)/$K$4% -> 43.75 | K21: =SUM(B21:G21) -> 14
